Cogmind - Beta 11 @@@ ROGUE MODE // 2022.03.22 @ 14:44:21 Player: Demise Result: Destroyed by 8R-AWN with 8R-AWN's Boregun Performance ------------- Evolutions (0) 0 Regions Visited (3) 600 Robots Destroyed (38) 190 Value Destroyed (618) 618 Prototype IDs (17) 340 Alien Tech Used (0) 0 Bonus (300) 300 TOTAL SCORE: 2048 Bonus ------- Aligned with FarCom 300 Cogmind --------- Core Integrity 0/250 Matter 12/300 Energy 80/100 System Corruption 0% Temperature Cool (0) Movement Treading (160) Location -10/Exiles Parts ------- > --- POWER (1) -------- (None) > --- PROPULSION (2) --- Light Treads > --- UTILITY (2) ------ (None) > --- WEAPON (2) ------- Autogun > --- INVENTORY (5) ---- High-capacity Storage Unit Hardlight Generator Field Laser Peak State ------------ > --- POWER ------------ Light Deuterium Engine > --- PROPULSION ------- Light Treads Light Treads > --- UTILITY ---------- High-capacity Storage Unit > --- WEAPON ----------- Firepult > --- INVENTORY -------- Light Deuterium Engine Light Treads Light Treads Cooling System Cooling System Huge Storage Unit Seismic Detector Light Armor Plating Light Armor Plating Hardlight Generator Hacking Suite Field Laser Light Assault Rifle Autogun Autogun Autogun Grenade Launcher Mining Laser Plasma Cutter Plasma Cutter [Rating: 29] Favorites ----------- Power Light Deuterium Engine Engine Light Deuterium Engine Propulsion Light Treads Treads Light Treads Utility High-capacity Storage Unit Device Seismic Detector Storage High-capacity Storage Unit Protection Light Armor Plating Weapon Autogun Energy Gun Field Laser Energy Cannon Firepult Ballistic Gun Autogun Launcher Grenade Launcher Special Weapon Plasma Cutter Special Melee Weapon Datajack Build | -11 -10 -10 -10 ------- Run | Scr Mat Min Exi Slots Evolved . | . . . . Power . | . . . . Propulsion . | . . . . Utility . | . . . . Weapon . | . . . . Parts Attached 47 | 8 15 4 20 Power 5 | 1 2 1 1 Engine 5 | 1 2 1 1 Core . | . . . . Reactor . | . . . . Propulsion 8 | 2 3 . 3 Treads 8 | 2 3 . 3 Leg . | . . . . Wheel . | . . . . Hover . | . . . . Flight . | . . . . Utility 10 | 3 2 1 4 Device 4 | 2 . . 2 Storage 3 | 1 2 . . Processor . | . . . . Hackware . | . . . . Protection 3 | . . 1 2 Artifact . | . . . . Weapon 24 | 2 8 2 12 Energy Gun 1 | . . 1 . Energy Cannon 1 | . . . 1 Ballistic Gun 16 | 2 7 1 6 Ballistic Cannon . | . . . . Launcher 1 | . . . 1 Special Weapon 4 | . 1 . 3 Impact Weapon . | . . . . Slashing Weapon . | . . . . Piercing Weapon . | . . . . Special Melee Weapon 1 | . . . 1 Unidentified Prototypes 3 | . . . 3 Parts Lost 13 | . . . 13 Power 2 | . . . 2 Propulsion 3 | . . . 3 Utility 2 | . . . 2 Weapon 6 | . . . 6 Highest Loss Streak 11 | . . . 11 To Critical Strikes 5 | . . . 5 Average Slot Usage (%) 93 | . 99 100 79 Engine 13 | . 14 14 13 Treads 27 | . 27 28 27 Device 6 | . 14 4 1 Storage 13 | . 14 14 12 Protection 4 | . . 9 5 Ballistic Gun 23 | . 27 27 14 Special Melee Weapon 1 | . . . 3 Naked Turns 5 | . . . 5 Heaviest Build 54 | 14 52 54 54 Greatest Support 40 | 40 40 40 40 Greatest Overweight (x) 2 | 1 2 1 1 Average Overweight (x) . | . . 1 . Largest Inventory Capacity 20 | 8 20 20 20 Average Capacity 18 | 7 17 20 18 Most Carried 20 | 4 20 20 20 Average Carried 16 | 1 15 19 16 Final Capacity 20 | 8 20 20 5 Final Carried 20 | 4 20 20 3 Class Distribution -------------------- 100% | Mutant Dominant Class ---------------- Mutant | -10/Materials Mutant | -10/Mines Mutant | -10/Exiles Resources | -11 -10 -10 -10 ----------- Run | Scr Mat Min Exi Matter Collected 1046 | 338 352 316 40 Remotely . | . . . . Salvage Created 1053 | 176 476 389 12 Parts 85 | 18 39 28 . Haulers Intercepted 2 | . 2 . . Recyclers Shooed . | . . . . Parts Field Recycled . | . . . . Retrieved Matter . | . . . . Parts Self-Destructed . | . . . . Prevented . | . . . . Kills | -11 -10 -10 -10 ------- Run | Scr Mat Min Exi Combat Hostiles Destroyed 27 | . 12 13 2 Guns 25 | . 12 13 . AOE 2 | . . . 2 Classes Destroyed 10 | 3 5 1 1 Worker 1 | 1 . . . Builder 1 | . . 1 . Tunneler 5 | 5 . . . Hauler 2 | . 2 . . Recycler 2 | 1 . 1 . Operator 1 | . 1 . . Watcher 1 | . 1 . . Swarmer 15 | . 6 9 . Grunt 10 | . 6 4 . Assembled 2 | . . . 2 Best Kill Streak 6 | 5 4 6 2 Combat Bots Only 6 | . 4 6 2 Max Kills in Single Turn 2 | 1 1 2 1 Gunslinging 1 | . . 1 . Exploded 1 | . . . 1 Melee . | . . . . Uniques/NPCs Destroyed . | . . . . Combat | -11 -10 -10 -10 -------- Run | Scr Mat Min Exi Damage Taken 1825 | . 304 282 1239 Core 255 | . 37 10 208 Absorbed by Shields 204 | . . . 204 Regen/Repaired (Parts) 96 | . 96 . . Core Remaining (%) 100 | 100 . . . Volleys Fired 140 | 17 56 21 46 Largest 2 | 2 2 2 2 Hottest 100 | 40 100 46 46 Shots Fired 258 | 34 107 42 75 Gun 243 | 34 106 42 61 Cannon . | . . . . Launcher 4 | . . . 4 Special 11 | . 1 . 10 Kinetic 243 | 34 106 42 61 Thermal 11 | . 1 . 10 Explosive 4 | . . . 4 Electromagnetic . | . . . . Robot Hit Streak 17 | 3 8 9 17 Robot Miss Streak 6 | 3 6 4 2 Penetration Max . | . . . . Secondary Targets 6 | . 4 2 . Max Gunslinging Chain 1 | . 1 1 . Shots Hit Robots 167 | 19 60 25 63 Core Hits 67 | 9 24 18 16 Critical Kills 1 | . . 1 . Critical Parts Destroyed . | . . . . Critical Strikes 1 | . . 1 . Destroy 1 | . . 1 . Melee Attacks 4 | . . . 4 Impact . | . . . . Slashing . | . . . . Piercing . | . . . . Sneak Attacks 4 | . . . 4 Combat Hostiles . | . . . . Follow-up Attacks . | . . . . Damage Inflicted 2123 | 196 808 397 722 Guns 1987 | 196 808 397 586 Cannons . | . . . . Explosions 130 | . . . 130 Melee . | . . . . Ramming . | . . . . Kinetic 1987 | 196 808 397 586 Thermal 6 | . . . 6 Explosive 130 | . . . 130 Electromagnetic . | . . . . Impact . | . . . . Slashing . | . . . . Piercing . | . . . . Highest Corruption . | . . . . Average Corruption . | . . . . Corruption Purged . | . . . . Corruption Blocked . | . . . . Overload Shots . | . . . . Overflow Damage . | . . . . Projectiles . | . . . . Explosions . | . . . . Melee . | . . . . Knockbacks . | . . . . Impact . | . . . . Kinetic . | . . . . Secondary . | . . . . Self-Inflicted Damage 108 | . . . 108 Shots 3 | . . . 3 Rammed 2 | . . . 2 Targets Rammed 2 | . . . 2 Kicked . | . . . . Crushed . | . . . . Highest Temperature 28 | . 22 28 20 Average Temperature 7 | . 6 9 9 Received Heat Transfer 168 | . 108 60 . Siege Activations . | . . . . Robots Corrupted . | . . . . Combat Hostiles . | . . . . Parts Fried . | . . . . Impact Corruptions . | . . . . Robots Melted . | . . . . Combat Hostiles . | . . . . Parts Melted . | . . . . Heat Transferred 54 | . . . 54 Parts Sabotaged . | . . . . Parts Stolen . | . . . . Parts Stripped . | . . . . Power Chain Reactions . | . . . . Missiles Intercepted . | . . . . Alert | -11 -10 -10 -10 ------- Run | Scr Mat Min Exi Peak Influence 305 | 35 246 305 . Initial 22 | . 22 20 . Average 104 | 17 121 96 . Maximum Alert Level 1 | . 1 1 . Low Security (%) 91 | 100 93 88 . Level 1 8 | . 6 11 . Level 2 . | . . . . Level 3 . | . . . . Level 4 . | . . . . Level 5 . | . . . . High Security . | . . . . Max Security . | . . . . Squads Dispatched 4 | . 3 1 . Investigation 3 | . 2 1 . Extermination . | . . . . Reinforcement 1 | . 1 . . Assault . | . . . . Garrison . | . . . . Intercept . | . . . . Searches Triggered . | . . . . Construction Impeded . | . . . . Haulers Reinforced . | . . . . Active Scanning Responses . | . . . . Cargo Convoy Interrupts . | . . . . Stealth | -11 -10 -10 -10 --------- Run | Scr Mat Min Exi Distress Signals 1 | . 1 . . Communications Jammed . | . . . . Distress Signals . | . . . . Times Spotted 49 | . 26 14 9 Peak Tracking Total 11 | . 4 4 11 Tactical Retreats 6 | . 2 1 3 Traps | -11 -10 -10 -10 ------- Run | Scr Mat Min Exi Traps Triggered 4 | . 4 . . Indirectly . | . . . . Trap Hack Attempts . | . . . . Triggered . | . . . . Disarmed . | . . . . Reprogrammed . | . . . . Reused . | . . . . Traps Extracted . | . . . . Installed . | . . . . Triggered . | . . . . Exploded 3 | . . . 3 Machines | -11 -10 -10 -10 ---------- Run | Scr Mat Min Exi Machines Disabled 5 | . . . 5 Max in Single Turn 1 | . . . 1 Machines Sabotaged . | . . . . Garrisons Compromised . | . . . . Overloaded Fab Kills . | . . . . Hacking | -11 -10 -10 -10 --------- Run | Scr Mat Min Exi Machines Accessed 12 | . 9 2 1 Terminals 7 | . 6 1 . Fabricators . | . . . . Repair Stations 1 | . 1 . . Recycling Units 2 | . 2 . . Scanalyzers . | . . . . Garrison Access . | . . . . Total Hacks 38 | . 34 3 1 Successful 23 | . 20 2 1 Failed 14 | . 13 1 . Catastrophic . | . . . . Database Lockouts 1 | . 1 . . Manual 28 | . 25 2 1 Terminals 23 | . 21 2 . Fabricators . | . . . . Repair Stations 3 | . 3 . . Recycling Units 10 | . 10 . . Scanalyzers . | . . . . Garrison Access . | . . . . Terminal Hacks 9 | . 6 2 1 Record 1 | . . . 1 Part Schematic 1 | . . 1 . Robot Analysis 4 | . 4 . . Open Door 1 | . . 1 . Branch Access Points 1 | . 1 . . Terminal Index 1 | . 1 . . Fabricator Hacks . | . . . . Repair Station Hacks 2 | . 2 . . Scan Component 1 | . 1 . . Repair 1 | . 1 . . Recycling Unit Hacks 2 | . 2 . . Retrieve Components 2 | . 2 . . Scanalyzer . | . . . . Garrison Access Hacks . | . . . . Unauthorized Hacks 10 | . 10 . . Terminals 5 | . 5 . . Botnet 5 | . 5 . . Fabricators . | . . . . Repair Stations . | . . . . Recycling Units 5 | . 5 . . Reject 1 | . 1 . . Recyclers 2 | . 2 . . Mask 1 | . 1 . . Tunnel 1 | . 1 . . Scanalyzers . | . . . . Garrison Access . | . . . . Data Cores Recovered . | . . . . Used . | . . . . Hacking Detections 8 | . 7 1 . Full Trace Events 2 | . 2 . . Feedback Events . | . . . . Feedback Blocked . | . . . . Robot Schematics Acquired . | . . . . Robots Built . | . . . . Authchips . | . . . . Time . | . . . . Total Robot Build Rating . | . . . . Part Schematics Acquired 1 | . . 1 . Parts Built . | . . . . Authchips . | . . . . Time . | . . . . Total Part Build Rating . | . . . . Parts Repaired 1 | . 1 . . Time 13 | . 13 . . Parts Recycled . | . . . . Recycled Matter . | . . . . Retrieved Matter . | . . . . Retrieved Components 8 | . 8 . . Parts Scanalyzed . | . . . . Part Schematics Acquired . | . . . . Parts Damaged . | . . . . Bothacking | -11 -10 -10 -10 ------------ Run | Scr Mat Min Exi Used RIF Installer . | . . . . Robots Hacked 4 | . . . 4 Non-combat 3 | . . . 3 Combat 1 | . . . 1 Robot Hacks Applied 4 | . . . 4 parse_system 4 | . . . 4 Relay Couplers Released . | . . . . Fabnet Peak Effective % . | . . . . Robots Rewired . | . . . . Allies Hacked . | . . . . Hacks Repelled . | . . . . Allies | -11 -10 -10 -10 -------- Run | Scr Mat Min Exi Total Allies . | . . . . Largest Group . | . . . . Highest-Rated Group . | . . . . Highest-Rated Ally . | . . . . Total Orders . | . . . . Ally Attacks . | . . . . Total Damage . | . . . . Kills . | . . . . Allies Corrupted . | . . . . Allies Melted . | . . . . Intel | -11 -10 -10 -10 ------- Run | Scr Mat Min Exi Robot Analysis Total 4 | . 4 . . Derelict Logs Recovered 2 | . . 2 . Drone Launches . | . . . . Drone Recoveries . | . . . . Exploration | -11 -10 -10 -10 ------------- Run | Scr Mat Min Exi Turns Passed 4915 | 165 1669 1531 1550 Spaces Moved 1969 | 67 740 607 555 Core 38 | 4 . . 34 Treads 1931 | 63 740 607 521 Legs . | . . . . Wheels . | . . . . Hover . | . . . . Flight . | . . . . Fastest Speed 50 | 50 160 240 50 Average Speed 215 | 154 192 240 227 Slowest Speed 320 | 160 320 240 240 Overloaded Moves . | . . . . Propulsion Burnouts . | . . . . Robots Hopped . | . . . . Cave-ins Triggered . | . . . . Exploration Rate (%) 67 | 4 96 98 71 Regions Visited 3 Branch Regions 2 Pre-discovered Areas 3 | . 1 1 1 Known Exits Taken 1 | . 1 . . Unknown Exits Taken 2 | 1 . 1 . Scrap Searched 1 | . . 1 . Spaces Dug 1 | . 1 . . Terrain Destroyed 12 | . 1 . 11 Melee . | . . . . Projectile 1 | . 1 . . AOE 11 | . . . 11 Terrain Rammed . | . . . . Walls Destroyed . | . . . . Machines Disabled . | . . . . Actions | -11 -10 -10 -10 --------- Run | Scr Mat Min Exi Total 2419 | 95 901 650 773 Wait 185 | . 54 10 121 Move 1966 | 66 739 606 555 Hop . | . . . . Pick Up 34 | 4 24 3 3 Fast Attach 23 | 6 7 2 8 Attach 10 | 1 . . 9 Detach 3 | . . . 3 Swap 14 | 1 8 2 3 Drop 38 | . 13 6 19 Fire 140 | 17 56 21 46 Melee 4 | . . . 4 Ram . | . . . . Kick . | . . . . Crush 2 | . . . 2 Escape Stasis . | . . . . Rewire . | . . . . Trap . | . . . . Miscellaneous . | . . . . Route ------- -11/Scrapyard -10/Materials (discovered 4 exits: [*Mat x3] / *Min) -10/Mines (discovered 3 exits: [*Mat x2] / *Exi) -10/Exiles (discovered 2 exits: [*Min x2]) History --------- Turn | Location | Event 15 | -11/Scrapyard | Discovered new exit (range 16) 166 | -11/Scrapyard | Entered Materials 240 | -10/Materials | Discovered new exit (range 16) 307 | -10/Materials | Build established: Mutant 497 | -10/Materials | Discovered new exit (range 3) 804 | -10/Materials | Discovered new exit (range 5) 972 | -10/Materials | Discovered new exit (range 14) 1070 | -10/Materials | Identified exit to Mines 1270 | -10/Materials | Repaired Lgt. Treads 1561 | -10/Materials | Central database locked down 1835 | -10/Materials | Entered Mines 1904 | -10/Mines | Learned location of Zion (-7) 1911 | -10/Mines | Discovered new exit (range 11) 2245 | -10/Mines | Met a Derelict shopkeep closing up shop 2336 | -10/Mines | Learned location of 1 exit from Materials 2682 | -10/Mines | Discovered new exit (range 12) 3021 | -10/Mines | Deemed a non-threat by the Exiles lab entrance 3021 | -10/Mines | Discovered new exit (range 5) 3366 | -10/Mines | Entered Exiles 3405 | -10/Exiles | Discovered new exit (range 15) 3441 | -10/Exiles | Met 8R-AWN 3480 | -10/Exiles | Met EX-HEX 3592 | -10/Exiles | Met EX-DEC 3720 | -10/Exiles | Met EX-BIN 3756 | -10/Exiles | Aligned with FarCom system 3758 | -10/Exiles | Given EX-Vault access code 3813 | -10/Exiles | Opened EX-Vault 3823 | -10/Exiles | Found Prototype Device 3823 | -10/Exiles | Identified Supersonic Drone Bay 3845 | -10/Exiles | Found Prototype Special Weapon 3845 | -10/Exiles | Identified Field Lobotomy Kit 3859 | -10/Exiles | Found Prototype Energy Cannon 3859 | -10/Exiles | Identified Firepult 3913 | -10/Exiles | Warned to stay clear of 0b10 Research branches 4096 | -10/Exiles | Discovered new exit (range 10) 4684 | -10/Exiles | Attacked by the Exiles 4814 | -10/Exiles | Core integrity fell below 50% 4900 | -10/Exiles | Core integrity fell below 20% 4916 | -10/Exiles | Destroyed by 8R-AWN with 8R-AWN's Boregun Last Messages --------------- 04899_ HV Slug penetrates Wall. 04902_ Acquired Autogun. 04903_ Penetrated by HV Slug. 04903_ HV Slug penetrates Earth. 04903_ Penetrated by HV Slug. 04903_ HV Slug penetrates Earth. 04904_ Acquired Autogun. 04907_ Penetrated by HV Slug. 04907_ Critical hit (Destroy). 04907_ Autogun destroyed. 04907_ HV Slug penetrates Wall. 04907_ Penetrated by HV Slug. 04907_ Critical hit (Destroy). 04907_ Autogun destroyed. 04907_ HV Slug penetrates Wall. 04909_ Acquired Lgt. Treads. 04912_ Penetrated by HV Slug. 04912_ HV Slug penetrates Wall. 04912_ Acquired Autogun. 04916_ Penetrated by HV Slug. Map ----- +----------------------------------------------------+ | ?????????????????????????????????????????????????? | | ?????????????????????????????????????????????????? | | ?????????????????????????????????????????????????? | | ?????????????????????????????????????????????????? | | ?????????????????????????????????????????????????? | | ?????????????????????????????????????????????????? | | ?????????????????????????????????????????????????? | | ?????????????????????????????????????????????????? | | ?????????????????????????????????????????????????? | | ?????????????????????????????????????????????????? | | ?????????????????????????????????????????????????? | | ?????????????????????????????????????????????????? | | ????????????????????????????????????????????????## | | ????????????????????????????????????????????????"" | | ?#####?????????????????????????????????????????""" | | ## ##??????????????????????###???? ?????????#""X | | # #?????????????????????? ???? ??????????#" | | # < #?????????????????????# #??# ???????????#" | | # ###??????????????????? ??# #???????????#""" | | # | #??????????????????# #?# #?????????????#"# | | # !!! #???????????????###? ?# #????????????????? | | ## ! #???????????????# ## ## #?????????????????? | | ?# ##??????????????# # # #??????????????????? | | ?## #????????????###;#;# #???????????????????? | | ??# #######??????#!!! ;#????????????????????? | | ??# #""##?????# @ ##????????????????????? | | ??## #????## ;#????????????????????? | | ???##" ##???#; ! ##???????????####?????? | | ???#"" #####" ] "#???????????? """????? | | ???#### ## "#????????????" """#???? | | ??????## #"" ###???????????"" #???? | | ???????#"## ##???????????#"" #???? | | ???????####### #???????????#"" "#???? | | ?????????????### g #???????????? ""????? | | ???????########" #####?????????" "?????? | | ???????# !!""""" ""#?????????# #?????? | | ???????#! "#######?### ###?### | | ???????#! # ""###X# #"###"" | | ???????#! ## """""" | | ???????# !""""""#######"# "" """ | | ???????##########?????###" " | | ????????????????????????#### | | ???????????????????????????#"" | | ???????????????????????????#### | | ??????????????????????????????## | | ???????????????????????????????## | | ????????????????????????????????#""" | | ???????????????????????????????##" | | ???????????????????????????????#"" "" | | ??????????????????????????????##""" """# | +----------------------------------------------------+ Best States ------------- Heat Dissipation 25 Energy Generation 14 Energy Capacity 250 Matter Stores 300 Matter Capacity 300 Sight Range 16 Terrain Scan Density 10 Armor Coverage 150 Evasion (%) 50 Recoil Reduction 2 Item Schematics ----------------- Hcp. Storage Unit | -10/Mines | Hacked Robot Schematics ------------------ None Fabricated ------------ Nothing Alien Tech Used ----------------- None Achievements -------------- None Challenges ------------ None Game ------ Seed AdvancedMyomerInsulator Manual? 0 Play Time 00:25:42 Cumulative 467.6 hours Start 2022.03.22 @ 14:20:55 End 2022.03.22 @ 14:44:21 Sessions 1 Manual Loads 0 Difficulty Rogue Special Mode None Game No. 380 Rogue 380 Adventurer 0 Explorer 0 Win Type - Total 3 Types 2/0/0/1/0/0/0/0/0 Lore% 68 Gallery% 77 Achievement% 66 Wizard Run 0 Options --------- ASCII 0 Keyboard 1 Movement Numpad Keybinds 0 Fullscreen 1 Font 12/Terminus Map View 83x54 Tactical HUD 1 Map Filters NONE Filters NONE Steam 1 RUN: e57ab490-42e3-4e6c-85d4-27042995e824